Cogmind - Beta 16.1 @@@ ROGUE MODE // 2026.02.24 @ 21:47:20 Player: Rocket Result: Self-destructed Performance ------------- Evolutions (4) 2000 Regions Visited (9) 1800 Robots Destroyed (84) 420 Value Destroyed (2267) 2267 Prototype IDs (4) 80 Alien Tech Used (0) 0 Bonus (619) 619 TOTAL SCORE: 7186 Bonus ------- High Alert Combat Kills 194 Follower Combat Kills 425 Cogmind --------- Core Integrity 850/850 Matter 270/300 Energy 160/160 System Corruption 0% Temperature Cool (0) Movement Rolling (100) Ox1 Location -6/Factory Parts ------- > --- POWER (1) -------- Light Nuclear Core > --- PROPULSION (6) --- Wheel Compact Wheel Armored Wheel Armored Huge Wheel > --- UTILITY (6) ------ Huge Storage Unit Insulated Plating Insulated Plating > --- WEAPON (2) ------- Great Maul Scythe > --- INVENTORY (25) --- Armored Treads Armored Treads Armored Treads Armored Treads Armored Treads Armored Treads Advanced Treads Medium Matter Pod (100) Medium Matter Pod (100) Large Matter Pod (150) Improved Sensor Array Improved Signal Interpreter ECM Suite Heavy Armor Plating Insulated Plating Authchip [R/NC] Drone Bay (2/2) Drone Bay (2/2) Heavy EM Shotgun EM Pulse Cannon Compact Ion Cannon Grenade Launcher Rocket Launcher Plasma Cutter Peak State ------------ > --- POWER ------------ Light Nuclear Core > --- PROPULSION ------- VSS Leg Compact Wheel Armored Wheel Armored Huge Wheel > --- UTILITY ---------- Huge Storage Unit Insulated Plating Insulated Plating > --- WEAPON ----------- Great Maul Scythe > --- INVENTORY -------- Armored Treads Armored Treads Armored Treads Armored Treads Armored Treads Armored Treads Advanced Treads Medium Matter Pod Medium Matter Pod Large Matter Pod Improved Sensor Array Improved Signal Interpreter ECM Suite Heavy Armor Plating Insulated Plating Authchip [R/NC] Drone Bay Drone Bay Heavy EM Shotgun EM Pulse Cannon Compact Ion Cannon Grenade Launcher Rocket Launcher Plasma Cutter [Rating: 37] Favorites ----------- Power Ion Engine Engine Ion Engine Power Core Light Nuclear Core Propulsion Wheel Treads Light Treads Leg VSS Leg Wheel Wheel Utility Huge Storage Unit Device Sensor Array Storage Huge Storage Unit Processor Machine Analyzer Protection Insulated Plating Weapon Light Cannon Energy Gun EM Pulse Gun Energy Cannon Cooled Plasma Cannon Ballistic Gun Light Assault Rifle Ballistic Cannon Light Cannon Launcher Grenade Launcher Special Weapon Mining Laser Impact Weapon Great Maul Slashing Weapon Scythe Build | -11 -10 -10 -10 -9 -8 -8 -8 -8 -6 ------- Run | Yrd Mat Min Exi Min Mat Sto Rec Scr Fac Slots Evolved 8 | . . . . . 4 . . . 4 Power . | . . . . . . . . . . Propulsion 4 | . . . . . 3 . . . 1 Utility 4 | . . . . . 1 . . . 3 Weapon . | . . . . . . . . . . Parts Attached 88 | 6 15 1 1 5 21 35 2 2 . Power 12 | 1 1 . . 1 3 6 . . . Engine 9 | 1 1 . . 1 3 3 . . . Core 3 | . . . . . . 3 . . . Reactor . | . . . . . . . . . . Propulsion 34 | 2 5 . 1 1 7 14 2 2 . Treads 5 | 2 . . . . . 3 . . . Leg 1 | . . . . . . 1 . . . Wheel 28 | . 5 . 1 1 7 10 2 2 . Hover . | . . . . . . . . . . Flight . | . . . . . . . . . . Utility 17 | 1 5 . . . 3 8 . . . Device 5 | . 3 . . . 2 . . . . Storage 4 | 1 2 . . . . 1 . . . Processor 1 | . . . . . 1 . . . . Hackware . | . . . . . . . . . . Protection 7 | . . . . . . 7 . . . Artifact . | . . . . . . . . . . Weapon 25 | 2 4 1 . 3 8 7 . . . Energy Gun 10 | 2 1 . . 1 4 2 . . . Energy Cannon 2 | . . . . . . 2 . . . Ballistic Gun 3 | . . . . 2 1 . . . . Ballistic Cannon 5 | . 2 1 . . 2 . . . . Launcher 1 | . . . . . 1 . . . . Special Weapon 2 | . 1 . . . . 1 . . . Impact Weapon 1 | . . . . . . 1 . . . Slashing Weapon 1 | . . . . . . 1 . . . Piercing Weapon . | . . . . . . . . . . Special Melee Weapon . | . . . . . . . . . . Unidentified Prototypes 4 | . . . . . 2 2 . . . Corrupted Parts 2 | . . . . . 1 1 . . . System Corruption 5 | . . . . . 2 3 . . . Parts Lost 27 | . 6 . . . 5 16 . . . Power 3 | . 1 . . . 1 1 . . . Propulsion 18 | . 2 . . . 4 12 . . . Utility 3 | . 1 . . . . 2 . . . Weapon 3 | . 2 . . . . 1 . . . Highest Loss Streak 6 | . 3 . . . 3 6 . . . To Critical Strikes . | . . . . . . . . . . Average Backups 21 | 2 13 22 21 23 23 23 24 24 . Power 1 | . 1 2 2 2 1 . . . . Propulsion 5 | 1 3 8 6 6 2 5 6 7 . Utility 8 | . 3 7 6 9 12 10 10 11 . Weapon 5 | . 4 5 6 6 6 6 5 5 . Tool/Special . | . . . . . . . . . . Unused Backups 29 | . . . 1 . 6 2 . . 20 Power . | . . . . . . . . . . Propulsion 7 | . . . . . . . . . 7 Utility 19 | . . . 1 . 6 1 . . 11 Weapon 3 | . . . . . . 1 . . 2 Tool/Special . | . . . . . . . . . . Average Slot Usage (%) 94 | . 95 100 88 99 98 89 100 97 . Engine 8 | . 13 14 14 14 9 4 . . . Core 2 | . . . . . . 3 9 9 . Treads 6 | . 10 25 5 . . 5 . . . Leg 1 | . . . . . . . 9 6 . Wheel 26 | . 16 2 22 28 43 32 36 36 . Device 8 | . 12 14 14 14 9 3 . . . Storage 11 | . 14 14 14 14 9 9 9 9 . Processor 1 | . . . . . 8 . . . . Protection 6 | . . . . . . 13 18 18 . Energy Gun 8 | . 23 . . 4 14 8 . . . Ballistic Gun 1 | . . . . 17 1 . . . . Ballistic Cannon 5 | . 1 20 16 5 1 . . . . Special Weapon 1 | . 1 7 . . . . . . . Impact Weapon 2 | . . . . . . 5 9 9 . Slashing Weapon 2 | . . . . . . 2 9 9 . Peak Build Rating 37 | 6 9 9 9 11 24 29 30 37 . Average Rating 17 | 4 7 9 8 9 21 24 29 32 . On Entrance 16 | . 6 9 9 9 11 24 29 30 35 Avg Prop Armor Cover (%) 5 | . . . . . . 10 3 3 . Naked Turns . | . . . . . . . . . . Heaviest Build 101 | 11 91 92 92 92 95 101 97 97 . Greatest Support 66 | 40 40 40 40 22 58 58 46 66 . Greatest Overweight (x) 9 | . 5 4 4 4 1 9 2 2 . Average Overweight (x) 2 | . 1 2 3 3 1 2 2 1 . Largest Inventory Capacity 25 | 8 25 25 25 25 25 25 25 25 . Average Capacity 23 | 6 19 25 25 25 25 25 25 25 . Most Carried 25 | 4 22 23 25 24 25 25 25 25 . Average Carried 21 | 2 13 22 21 23 24 24 24 25 . Final Capacity 25 | 8 25 25 25 25 25 25 25 25 25 Final Carried 25 | 4 22 23 23 24 25 25 25 25 25 Class Distribution -------------------- 49% | Mutant 44% | Scavenger-Mutant 5% | Commander-Mutant Dominant Class ---------------- Mutant | -10/Materials Mutant | -10/Mines Mutant | -10/Exiles Mutant | -9/Mines Scavenger-Mutant | -8/Materials Scavenger-Mutant | -8/Storage Scavenger-Mutant | -8/Recycling Scavenger-Mutant | -8/Scraptown Scavenger-Mutant | -6/Factory Resources | -11 -10 -10 -10 -9 -8 -8 -8 -8 -6 ----------- Run | Yrd Mat Min Exi Min Mat Sto Rec Scr Fac Matter Collected 2195 | 215 266 . 400 160 536 583 35 . . Remotely . | . . . . . . . . . . Salvage Created 3100 | . 646 . . 23 682 1302 447 . . Parts 167 | . 34 . . 5 50 60 18 . . Haulers Intercepted 1 | . . . . . . 1 . . . Recyclers Shooed 3 | . . . . . . 2 1 . . Parts Field Recycled . | . . . . . . . . . . Retrieved Matter . | . . . . . . . . . . Parts Self-Destructed . | . . . . . . . . . . Prevented . | . . . . . . . . . . Parts Restored . | . . . . . . . . . . Kills | -11 -10 -10 -10 -9 -8 -8 -8 -8 -6 ------- Run | Yrd Mat Min Exi Min Mat Sto Rec Scr Fac Combat Hostiles Destroyed 46 | . 8 . . 3 14 19 2 . . Melee 13 | . . . . . . 11 2 . . Guns 19 | . 2 . . . 11 6 . . . Cannons 4 | . 1 . . 3 . . . . . AOE 7 | . 4 . . . 3 . . . . Classes Destroyed 10 | . 5 . . 1 2 2 . . . Worker 16 | . 2 . . . 4 10 . . . Builder 9 | . 3 . . . 1 3 2 . . Hauler 1 | . . . . . . 1 . . . Recycler 6 | . 2 . . . . . 4 . . Mechanic 1 | . . . . . . 1 . . . Operator 2 | . . . . . 1 1 . . . Watcher 3 | . 2 . . . 1 . . . . Swarmer 4 | . . . . 3 1 . . . . Grunt 34 | . 8 . . . 11 15 . . . Sentry 8 | . . . . . 2 4 2 . . Best Kill Streak 8 | . 5 . . 3 8 7 6 . . Combat Bots Only 5 | . 3 . . 3 5 3 2 . . Max Kills in Single Turn 2 | . 2 . . 1 2 1 1 . . Gunslinging . | . . . . . . . . . . Exploded 2 | . 2 . . . 1 . . . . Melee 1 | . . . . . . 1 1 . . Uniques/NPCs Destroyed . | . . . . . . . . . . Combat | -11 -10 -10 -10 -9 -8 -8 -8 -8 -6 -------- Run | Yrd Mat Min Exi Min Mat Sto Rec Scr Fac Hostile Shots Fired 242 | . 46 . . 15 48 125 8 . . Missed 57 | . 14 . . 3 14 23 3 . . Hits 185 | . 32 . . 12 34 102 5 . . Projectile 185 | . 32 . . 12 34 102 5 . . AOE 1 | . . . . . 1 . . . . Critical Strikes 8 | . . . . . 4 4 . . . Damage Taken 2998 | . 633 . . 98 630 1569 68 . . Core 455 | . 166 . . 6 82 186 15 . . Absorbed by Shields . | . . . . . . . . . . Redirected to Shielding 28 | . . . . . . 28 . . . Regen/Repaired (Parts) 54 | . . . . . 54 . . . . Core Remaining (%) 59 | 100 . . . 31 . . . 48 . Volleys Fired 185 | . 45 18 . 8 48 66 . . . Largest 2 | . 2 2 . 2 2 2 . . . Hottest 130 | . 100 130 . 50 126 128 . . . Shots Fired 301 | . 73 19 . 16 85 108 . . . Gun 246 | . 63 . . 8 76 99 . . . Cannon 25 | . 8 1 . 8 2 6 . . . Launcher 6 | . . . . . 4 2 . . . Special 24 | . 2 18 . . 3 1 . . . Kinetic 38 | . 8 1 . 16 13 . . . . Thermal 195 | . 13 18 . . 58 106 . . . Explosive 6 | . . . . . 4 2 . . . Electromagnetic 62 | . 52 . . . 10 . . . . Robot Hit Streak 16 | . 12 . . 3 10 16 . . . Robot Miss Streak 6 | . 6 . . 3 3 3 . . . Penetration Max . | . . . . . . . . . . Secondary Targets 2 | . 1 . . . 1 . . . . Max Gunslinging Chain 1 | . 1 . . . 1 . . . . Shots Hit Robots 233 | . 41 . . 7 58 114 13 . . Core Hits 100 | . 21 . . 4 36 34 5 . . Critical Kills 1 | . . . . . . 1 . . . Critical Parts Destroyed 4 | . . . . . . 4 . . . Critical Strikes 16 | . 1 . . 1 2 10 2 . . Burn 5 | . . . . . 2 3 . . . Blast 1 | . . . . 1 . . . . . Corrupt 1 | . 1 . . . . . . . . Smash 5 | . . . . . . 5 . . . Sever 4 | . . . . . . 2 2 . . Melee Attacks 65 | . . . . . . 50 15 . . Impact 20 | . . . . . . 18 2 . . Slashing 45 | . . . . . . 32 13 . . Piercing . | . . . . . . . . . . Sneak Attacks 27 | . . . . . . 20 7 . . Combat Hostiles . | . . . . . . . . . . Follow-up Attacks 5 | . . . . . . 3 2 . . Damage Inflicted 6420 | . 883 . . 112 1298 3452 675 . . Guns 2661 | . 494 . . 29 943 1195 . . . Cannons 238 | . 37 . . 83 20 98 . . . Explosions 687 | . 352 . . . 335 . . . . Melee 2824 | . . . . . . 2149 675 . . Ramming . | . . . . . . . . . . Kinetic 292 | . 37 . . 112 143 . . . . Thermal 2319 | . 307 . . . 709 1303 . . . Explosive 425 | . 124 . . . 301 . . . . Electromagnetic 560 | . 415 . . . 145 . . . . Impact 986 | . . . . . . 896 90 . . Slashing 1838 | . . . . . . 1253 585 . . Piercing . | . . . . . . . . . . Highest Corruption 5 | . 2 2 2 2 2 5 5 . . Average Corruption 2 | . 2 2 2 2 2 3 5 . . Corruption Purged . | . . . . . . . . . . Corruption Blocked . | . . . . . . . . . . Effects 57 | . 5 7 7 1 4 23 10 . . Message Errors 14 | . . 2 1 1 1 6 3 . . Matter Fused 13 | . 3 . 1 . . 8 1 . . Heat Flow Errors 3 | . . . 1 . . 1 1 . . Energy Discharges 13 | . 1 1 2 . 1 4 4 . . Parts Rejected 1 | . . . . . . 1 . . . Parts Fused 1 | . . 1 . . . . . . . Data Loss (minor) 8 | . 1 3 2 . 1 1 . . . Data Loss (major) 2 | . . . . . 1 . 1 . . Alerts 1 | . . . . . . 1 . . . Weapon Failures 1 | . . . . . . 1 . . . Overload Shots . | . . . . . . . . . . Overflow Damage 791 | . 57 . . . 10 592 132 . . Projectiles 20 | . . . . . . . 20 . . Explosions 67 | . 57 . . . 10 . . . . Melee 704 | . . . . . . 592 112 . . Knockbacks 3 | . . . . . . 2 1 . . Impact 2 | . . . . . . 2 . . . Kinetic . | . . . . . . . . . . Secondary 1 | . . . . . . . 1 . . Self-Inflicted Damage 248 | . 203 . . . 45 . . . . Shots 7 | . 4 . . . 3 . . . . Rammed . | . . . . . . . . . . Targets Rammed . | . . . . . . . . . . Kicked . | . . . . . . . . . . Crushed . | . . . . . . . . . . Highest Temperature 200 | . 114 60 183 20 171 200 157 . . Average Temperature 48 | . 27 14 96 8 66 63 79 . . Received Heat Transfer 1398 | . 243 . . . 327 810 18 . . Siege Activations . | . . . . . . . . . . Martial Activations . | . . . . . . . . . . Shielding Activations . | . . . . . . . . . . Robots Disrupted 2 | . 2 . . . . . . . . Combat Hostiles 1 | . 1 . . . . . . . . Robots Corrupted 2 | . 1 . . . . 1 . . . Combat Hostiles 1 | . 1 . . . . . . . . Parts Fried 10 | . 2 . . . . 8 . . . Impact Corruptions 14 | . . . . . . 13 1 . . Robots Melted 2 | . . . . . . 2 . . . Combat Hostiles 2 | . . . . . . 2 . . . Parts Melted 11 | . . . . . 4 7 . . . Heat Transferred 5065 | . 425 . . . 1604 3036 . . . Parts Sabotaged . | . . . . . . . . . . Parts Stolen . | . . . . . . . . . . Parts Stripped . | . . . . . . . . . . Power Chain Reactions 5 | . 4 . . . 1 . . . . Alert | -11 -10 -10 -10 -9 -8 -8 -8 -8 -6 ------- Run | Yrd Mat Min Exi Min Mat Sto Rec Scr Fac Maximum Alert Level 3 | . . . . . 1 3 1 . . Low Security (%) 74 | 100 100 100 . 100 67 60 18 . . Level 1 13 | . . . . . 32 1 81 . . Level 2 4 | . . . . . . 14 . . . Level 3 7 | . . . . . . 23 . . . Level 4 . | . . . . . . . . . . Level 5 . | . . . . . . . . . . High Security . | . . . . . . . . . . Max Security . | . . . . . . . . . . Peak Influence 791 | . 118 16 . 60 295 791 310 . . Initial 300 | . . 16 . . . 124 300 . . Average 148 | . 44 . . 13 111 315 250 . . Influence Increases 2639 | . 441 2 . 70 559 1477 90 . . Destroy 0b10 Robot/C 1220 | . 160 . . 60 280 680 40 . . Destroy 0b10 Robot/NC 195 | . 45 . . . 35 85 30 . . Destroy Leader 310 | . 44 . . 10 62 194 . . . Allied During Kill 337 | . . . . . 1 336 . . . Successful Hack 89 | . 22 . . . 22 25 20 . . Disable Machine 195 | . 75 . . . 30 90 . . . Destroy Structure 113 | . 50 2 . . 24 37 . . . Partial Spotted 15 | . 15 . . . . . . . . Lose Combat Pursuer 165 | . 30 . . . 105 30 . . . Influence Decreases 2639 | . 399 44 . 70 264 1001 701 160 . Entered New Map 828 | . . 26 . . . 171 471 160 . Time Decay 1376 | . 339 18 . 70 229 490 230 . . Lost Part 251 | . 60 . . . 31 160 . . . Lost Ally 184 | . . . . . 4 180 . . . Squads Dispatched 15 | . 3 . . . 4 8 . . . Investigation 7 | . 2 . . . 3 2 . . . Extermination . | . . . . . . . . . . Reinforcement 5 | . 1 . . . 1 3 . . . Assault . | . . . . . . . . . . Garrison 3 | . . . . . . 3 . . . Intercept . | . . . . . . . . . . Searches Triggered . | . . . . . . . . . . Construction Impeded 1 | . . . . . . 1 . . . Haulers Reinforced . | . . . . . . . . . . Active Scanning Responses . | . . . . . . . . . . Cargo Convoy Interrupts . | . . . . . . . . . . Stealth | -11 -10 -10 -10 -9 -8 -8 -8 -8 -6 --------- Run | Yrd Mat Min Exi Min Mat Sto Rec Scr Fac Distress Signals 3 | . 1 . . . . 2 . . . Communications Jammed . | . . . . . . . . . . Distress Signals . | . . . . . . . . . . Times Spotted 85 | . 20 . . 3 24 36 2 . . Peak Tracking Total 6 | . 5 . . 3 5 6 1 . . Tactical Retreats 8 | . 2 . . . 4 2 . . . Traps | -11 -10 -10 -10 -9 -8 -8 -8 -8 -6 ------- Run | Yrd Mat Min Exi Min Mat Sto Rec Scr Fac Traps Triggered 3 | . 2 . . . 1 . . . . Indirectly . | . . . . . . . . . . Trap Hack Attempts . | . . . . . . . . . . Triggered . | . . . . . . . . . . Disarmed . | . . . . . . . . . . Reprogrammed . | . . . . . . . . . . Reused . | . . . . . . . . . . Traps Extracted . | . . . . . . . . . . Installed . | . . . . . . . . . . Triggered . | . . . . . . . . . . Machines | -11 -10 -10 -10 -9 -8 -8 -8 -8 -6 ---------- Run | Yrd Mat Min Exi Min Mat Sto Rec Scr Fac Machines Disabled 13 | . 5 . . . 2 6 . . . Max in Single Turn 2 | . 2 . . . 1 1 . . . Machines Repaired . | . . . . . . . . . . Machines Dismantled 1 | . . . . . . 1 . . . Machines Sabotaged . | . . . . . . . . . . Overloaded Fab Kills . | . . . . . . . . . . Hacking | -11 -10 -10 -10 -9 -8 -8 -8 -8 -6 --------- Run | Yrd Mat Min Exi Min Mat Sto Rec Scr Fac Machines Accessed 27 | . 5 . 1 . 5 10 5 1 . Terminals 23 | . 5 . . . 3 10 5 . . Fabricators . | . . . . . . . . . . Repair Stations 1 | . . . . . 1 . . . . Recycling Units . | . . . . . . . . . . Scanalyzers 1 | . . . . . 1 . . . . Garrison Access . | . . . . . . . . . . Total Hacks 100 | . 15 . 23 . 18 22 14 8 . Successful 58 | . 3 . 23 . 11 7 6 8 . Failed 42 | . 12 . . . 7 15 8 . . Catastrophic 14 | . 3 . . . 2 6 3 . . Database Lockouts . | . . . . . . . . . . Manual 40 | . 15 . . . 3 10 12 . . Terminals 62 | . 15 . . . 11 22 14 . . Fabricators . | . . . . . . . . . . Repair Stations 2 | . . . . . 2 . . . . Recycling Units . | . . . . . . . . . . Scanalyzers 5 | . . . . . 5 . . . . Garrison Access . | . . . . . . . . . . Terminal Hacks 52 | . 3 . 23 . 5 7 6 8 . Record 37 | . . . 23 . 3 2 1 8 . Part Schematic 1 | . 1 . . . . . . . . Robot Schematic 1 | . 1 . . . . . . . . Robot Analysis 1 | . . . . . . . 1 . . Open Door 3 | . . . . . . 3 . . . Branch Access Points 4 | . 1 . . . 1 1 1 . . Emergency Access Points 1 | . . . . . 1 . . . . Recall Investigation 1 | . . . . . . 1 . . . Zone Layout 3 | . . . . . . . 3 . . Fabricator Hacks . | . . . . . . . . . . Repair Station Hacks 2 | . . . . . 2 . . . . Scan Component 1 | . . . . . 1 . . . . Repair 1 | . . . . . 1 . . . . Recycling Unit Hacks . | . . . . . . . . . . Scanalyzer 4 | . . . . . 4 . . . . Retrieve Study 4 | . . . . . 4 . . . . Garrison Access Hacks . | . . . . . . . . . . Unauthorized Hacks . | . . . . . . . . . . Terminals . | . . . . . . . . . . Fabricators . | . . . . . . . . . . Repair Stations . | . . . . . . . . . . Recycling Units . | . . . . . . . . . . Scanalyzers . | . . . . . . . . . . Garrison Access . | . . . . . . . . . . Data Cores Recovered 1 | . . . . . 1 . . . . Used . | . . . . . . . . . . Hacking Detections 20 | . 4 . . . 3 9 4 . . Full Trace Events 6 | . 2 . . . . 2 2 . . Feedback Events . | . . . . . . . . . . Feedback Blocked . | . . . . . . . . . . Robot Schematics Acquired 1 | . 1 . . . . . . . . Robots Built . | . . . . . . . . . . Authchips . | . . . . . . . . . . Time . | . . . . . . . . . . Total Robot Build Rating . | . . . . . . . . . . Part Schematics Acquired 1 | . 1 . . . . . . . . Parts Built . | . . . . . . . . . . Authchips . | . . . . . . . . . . Time . | . . . . . . . . . . Total Part Build Rating . | . . . . . . . . . . Part Studies Acquired 4 | . . . . . 4 . . . . Parts Repaired 1 | . . . . . 1 . . . . Time 32 | . . . . . 32 . . . . Parts Recycled . | . . . . . . . . . . Recycled Matter . | . . . . . . . . . . Retrieved Matter . | . . . . . . . . . . Retrieved Components . | . . . . . . . . . . Parts Scanalyzed . | . . . . . . . . . . Part Schematics Acquired . | . . . . . . . . . . Parts Damaged . | . . . . . . . . . . Bothacking | -11 -10 -10 -10 -9 -8 -8 -8 -8 -6 ------------ Run | Yrd Mat Min Exi Min Mat Sto Rec Scr Fac Used RIF Installer . | . . . . . . . . . . Robots Hacked . | . . . . . . . . . . Non-combat . | . . . . . . . . . . Combat . | . . . . . . . . . . Robot Hacks Applied . | . . . . . . . . . . Relay Couplers Released . | . . . . . . . . . . Fabnet Peak Effective % . | . . . . . . . . . . Robots Rewired . | . . . . . . . . . . Allies Hacked . | . . . . . . . . . . Hacks Repelled . | . . . . . . . . . . Allies | -11 -10 -10 -10 -9 -8 -8 -8 -8 -6 -------- Run | Yrd Mat Min Exi Min Mat Sto Rec Scr Fac Total Allies 13 | . . . . 3 . 10 . . . Largest Group 10 | . . . . 3 3 10 . . . Highest-Rated Group 173 | . . . . 40 40 173 . . . Highest-Rated Ally 29 | . . . . 16 16 29 . . . Total Orders . | . . . . . . . . . . Ally Attacks 120 | . . . . . 12 108 . . . Total Damage 1579 | . . . . . 106 1473 . . . Kills 17 | . . . . . . 17 . . . Allies Corrupted . | . . . . . . . . . . Allies Melted . | . . . . . . . . . . Intel | -11 -10 -10 -10 -9 -8 -8 -8 -8 -6 ------- Run | Yrd Mat Min Exi Min Mat Sto Rec Scr Fac Active Infowar (turns) 2569 | . 495 645 575 251 596 7 . . . Sensors 1617 | . 87 645 575 251 59 . . . . Structural 408 | . 408 . . . . . . . . Machine Analysis 600 | . . . . . 593 7 . . . Robot Analysis Total 1 | . . . . . . . 1 . . Derelict Logs Recovered 1 | . . . . 1 . . . . . Drone Launches . | . . . . . . . . . . Drone Recoveries . | . . . . . . . . . . Exploration | -11 -10 -10 -10 -9 -8 -8 -8 -8 -6 ------------- Run | Yrd Mat Min Exi Min Mat Sto Rec Scr Fac Turns Passed 5412 | 85 983 645 575 251 596 1295 493 489 . Spaces Moved 3289 | 47 547 191 358 148 360 743 432 463 . Core 2 | 2 . . . . . . . . . Treads 420 | 45 185 156 34 . . . . . . Legs . | . . . . . . . . . . Wheels 2867 | . 362 35 324 148 360 743 432 463 . Hover . | . . . . . . . . . . Flight . | . . . . . . . . . . Fastest Speed 50 | 50 130 140 140 130 91 85 105 100 . Average Speed 129 | 155 144 287 157 138 92 108 105 104 . Slowest Speed 320 | 160 175 320 320 140 101 205 105 107 . Overloaded Moves . | . . . . . . . . . . Propulsion Burnouts . | . . . . . . . . . . Robots Hopped . | . . . . . . . . . . Potential Cave-ins 13 | . . 13 . . . . . . . Cave-ins Triggered . | . . . . . . . . . . Exploration Rate (%) 50 | 3 72 44 68 30 30 77 75 51 . Regions Visited 9 Branch Regions 6 Pre-discovered Areas 2 | . . . 1 . . 1 . . . Known Exits Taken 3 | . 1 . . . 1 1 . . . Unknown Exits Taken 6 | 1 . 1 1 1 . . 1 1 . Scrap Searched 2 | . . . . 2 . . . . . Spaces Dug 24 | . 2 17 . . 3 2 . . . Terrain Destroyed 145 | . 62 17 . . 51 15 . . . Melee 2 | . . . . . . 2 . . . Projectile 24 | . 2 17 . . 3 2 . . . AOE 119 | . 60 . . . 48 11 . . . Terrain Rammed . | . . . . . . . . . . Walls Destroyed . | . . . . . . . . . . Machines Disabled . | . . . . . . . . . . Actions | -11 -10 -10 -10 -9 -8 -8 -8 -8 -6 --------- Run | Yrd Mat Min Exi Min Mat Sto Rec Scr Fac Total 3968 | 56 660 232 373 178 531 1015 454 469 . Wait 173 | . 32 17 . 16 55 53 . . . Move 3280 | 46 546 190 357 147 359 742 431 462 . Hop . | . . . . . . . . . . Pick Up 59 | 4 19 1 5 . 15 12 3 . . Fast Attach 51 | 6 4 . . 2 8 29 . 2 . Attach 17 | . 5 . 2 . 7 3 . . . Detach 3 | . . . 2 . 1 . . . . Swap 60 | . 7 6 2 3 19 20 2 1 . Drop 69 | . 2 . 5 2 19 32 5 4 . Fire 185 | . 45 18 . 8 48 66 . . . Melee 58 | . . . . . . 45 13 . . Ram . | . . . . . . . . . . Kick . | . . . . . . . . . . Crush . | . . . . . . . . . . Escape Stasis . | . . . . . . . . . . Rewire . | . . . . . . . . . . Trap . | . . . . . . . . . . Miscellaneous 13 | . . . . . . 13 . . . Route ------- -11/Scrapyard -10/Materials (discovered 4 exits: [*Mat x2] / *Min / [*Sub]) -10/Mines -10/Exiles -9/Mines -8/Materials -8/Storage -8/Recycling -8/Scraptown -6/Factory History --------- Turn | Location | Event 6 | -11/Scrapyard | Discovered new exit (range 15) 86 | -11/Scrapyard | Entered Materials 304 | -10/Materials | Build established: Mutant 362 | -10/Materials | Discovered new exit (range 16) 368 | -10/Materials | Identified exit to Mines 540 | -10/Materials | Discovered new exit (range 9) 886 | -10/Materials | Derelicts attacked the area 930 | -10/Materials | Core integrity fell below 50% 996 | -10/Materials | Lost 3 parts (1n1u1w) 1058 | -10/Materials | Discovered new exit (range 12) 1069 | -10/Materials | Entered Mines 1617 | -10/Mines | Received a Rocket Launcher from a helpful Derelict 1695 | -10/Mines | Deemed a non-threat by the Exiles lab entrance 1698 | -10/Mines | Discovered new exit (range 5) 1714 | -10/Mines | Entered Exiles 1801 | -10/Exiles | Met 8R-AWN 1838 | -10/Exiles | Met EX-HEX 1893 | -10/Exiles | Met EX-DEC 1991 | -10/Exiles | Learned location of Zion (-7) 2052 | -10/Exiles | Met EX-BIN 2262 | -10/Exiles | Discovered new exit (range 14) 2289 | -10/Exiles | Entered Mines 2317 | -9/Mines | Learned Materials terminal intel 2413 | -9/Mines | Found a hidden stash of uninstalled traps 2431 | -9/Mines | Assisted by bots powering up and referring to "LRC-V3" 2519 | -9/Mines | Discovered new exit (range 9) 2540 | -9/Mines | Entered Materials 2540 | -8/Materials | Accompanied by 3 allies 2540 | -8/Materials | Evolved 4 slots: Propulsion x3, Utility x1 2541 | -8/Materials | Loaded intel: 12 terminal locations 2702 | -8/Materials | Lost 3 allies 2731 | -8/Materials | Lost 3 parts (1p2n) 2760 | -8/Materials | Repaired Arm. Wheel+ 2770 | -8/Materials | Identified exit to Storage 2853 | -8/Materials | Build established: Scavenger-Mutant 3136 | -8/Materials | Entered Storage 3711 | -8/Storage | Lost 6 parts (1p3n1u1w) 3820 | -8/Storage | Assisted by bots powering up and referring to "LRC-V3" 3842 | -8/Storage | Garrison activated, responded to threat 3870 | -8/Storage | Lost 4 parts (4n) 3914 | -8/Storage | Learned location of Armory (-3) 4118 | -8/Storage | Build established: Commander-Mutant 4194 | -8/Storage | Lost 5 allies 4305 | -8/Storage | Lost 3 allies 4328 | -8/Storage | Identified exit to Recycling 4426 | -8/Storage | Used back door to open Recycling access 4431 | -8/Storage | Entered Recycling 4589 | -8/Recycling | Build established: Scavenger-Mutant 4591 | -8/Recycling | Core integrity fell below 50% 4898 | -8/Recycling | Scanned before Scraplab entrance 4914 | -8/Recycling | Entered Scraplab 4922 | -8/Recycling | Discovered new exit (range 2) 4924 | -8/Recycling | Entered Scraptown 4924 | -8/Scraptown | System corruption cleaned by C-Scrubber 5111 | -8/Scraptown | Visited Cave Peace 5153 | -8/Scraptown | Visited Symbiants 5192 | -8/Scraptown | Visited CR-KLE's Repair Center 5214 | -8/Scraptown | Visited Fellowship of the Rings 5400 | -8/Scraptown | Discovered new exit (range 7) 5413 | -8/Scraptown | Entered Factory 5413 | -6/Factory | Evolved 4 slots: Propulsion x1, Utility x3 5413 | -6/Factory | Self-destructed Last Messages --------------- caves to help direct the flow of traffic so that meetings are less frequent? >>Record "Cave J87" Whatever is hiding here is responsible for three missing CP missionaries. Avoid until we have a safe way to learn more. 05153_ LOCAL NARROWCAST: Symbiants. The Lifeworm is out there, somewhere. 05192_ LOCAL NARROWCAST: CR-KLE's Repair Center. 05214_ LOCAL NARROWCAST: Fellowship of the Rings. 05262_ Dropped Wheel+. 05263_ Acquired Arm. Huge Wheel. 05266_ Dropped VSS Leg. 05266_ Acquired Wheel+. 05400_ EXIT=FOUND XG-4WS(E): We are 0bPrime. We are one. PARAMETERS=PROPULSION+1,UTILITY+3 LOCATION=UNKNOWN GOAL=ESCAPE Map ----- +----------------------------------------------------+ | ?????????????????????????????????????????????????? | | ?????????????????????????????????????????????????? | | ?????????????????????????????????????????????????? | | ?????????????????????????????????????????????????? | | ?????????????????????????????????????????????????? | | ?????????????????????????????????????????????????? | | ?????????????????????????????????????????????????? | | ?????????????????????????????????????????????????? | | ?????????????????????????????????????????????????? | | ?????????????????????????????????????????????????? | | ?????????????????????????????????????????????????? | | ?????????????????????????????????????????????????? | | ?????????????????????????????????????????????????? | | ?????????????????????????????????????????????????? | | ?????????????????????????????????????????????????? | | ?????????????????????????????????????????????????? | | ?????????????????????????????????????????????????? | | ?????????????????????????????????????????????????? | | ?????????????????????????????????????????????????? | | ?????????????????????????????????????????????????? | | ?????????????????????????????????????????????????? | | ?????????????????????????????????????????????????? | | ??????????????????????#######????????????????????? | | ??????????????????????# #????????????????????? | | ?????????????????##+### #????????????????????? | | ?????????? @ #????????????????????? | | ?????????? #????????????????????? | | ?????????? #????????????????????? | | ??????????? #????????????????????? | | ??????????? #????????????????????? | | ????????????+### ########????????????????????? | | ???????????????# ????????????????????????????? | | ???????????????# ?????????????????????????????? | | ???????????????# ??????????????????????????????? | | ???????????????# ???????????????????????????????? | | ???????????????# ????????????????????????????????? | | ???????????????+?????????????????????????????????? | | ?????????????????????????????????????????????????? | | ?????????????????????????????????????????????????? | | ?????????????????????????????????????????????????? | | ?????????????????????????????????????????????????? | | ?????????????????????????????????????????????????? | | ?????????????????????????????????????????????????? | | ?????????????????????????????????????????????????? | | ?????????????????????????????????????????????????? | | ?????????????????????????????????????????????????? | | ?????????????????????????????????????????????????? | | ?????????????????????????????????????????????????? | | ?????????????????????????????????????????????????? | | ?????????????????????????????????????????????????? | +----------------------------------------------------+ Best States ------------- Heat Dissipation 45 Energy Generation 14 Energy Capacity 265 Matter Stores 300 Matter Capacity 300 Sight Range 16 Robot Scan Range 14 Terrain Scan Density 10 Armor Coverage 300 Resistance: EM 15 Utility Shielding 66 Evasion (%) 43 Recoil Reduction 2 Authchip Count 1 Item Schematics ----------------- Cargo Storage Unit | -10/Materials | Hacked Robot Schematics ------------------ M-13 Machinist | -10/Materials | Hacked Fabricated ------------ Nothing Repaired ---------- Arm. Wheel | 46% | -8/Materials Studied --------- Arm. Wheel | -8/Materials | Hacked Wheel | -8/Materials | Hacked Com. Wheel | -8/Materials | Hacked Rocket Launcher | -8/Materials | Hacked Alien Tech Used ----------------- None Achievements -------------- None Challenges ------------ None Game ------ Seed WavePhaseRefractor Manual? 0 Play Time 00:35:25 Cumulative 112.2 hours Start 2026.02.24 @ 21:03:20 End 2026.02.24 @ 21:47:20 Sessions 1 Manual Loads 0 Difficulty Rogue Special Mode None Game No. 167 Rogue 167 Adventurer 0 Explorer 0 Win Type - Total 0 Types 0/0/0/0/0/0/0/0/0/0 Lore% 32 Gallery% 43 Achievement% 35 Wizard Run 0 Options --------- Layout 1 ASCII 0 Keyboard 0 Movement Mouse Keybinds 0 Fullscreen 2 Font 24/Smallcaps Map View 50x35 Zoom Use 27% Tactical HUD 1 Map Filters NONE Filters NONE Steam 1 RUN: 5eb647c4-9964-4d9c-a7c2-c746f208c09d